bitfinex/quotes_BTCUSD_20241208
["timestamp","ask_amount","ask_price","bid_price","bid_amount"]
[1733654514733,0.30818841,99431.0,99430.0,1.57985328]
[1733654522887,0.30818841,99431.0,99430.0,1.52985407]
[1733654523095,0.30818841,99431.0,99430.0,1.57985328]
[1733654527812,0.30818841,99431.0,99430.0,1.52985407]
[1733654528027,0.31680494,99431.0,99430.0,1.52985407]
[1733654528434,0.31680494,99431.0,99430.0,1.57985328]
[1733654532724,0.31680494,99431.0,99430.0,1.52985407]
[1733654532929,0.41683445,99431.0,99430.0,1.43003873]
[1733654533132,0.49733445,99431.0,99430.0,1.43003873]
[1733654563125,0.41683445,99431.0,99430.0,1.61106973]
[1733654591419,0.54133445,99431.0,99430.0,1.43003873]
[1733654591666,0.79071451,99431.0,99430.0,1.43003873]
[1733654591875,0.78175058,99431.0,99430.0,1.43003873]
[1733654592085,0.69133445,99431.0,99430.0,1.43003873]
[1733654592756,0.68633445,99431.0,99430.0,1.43003873]
[1733654592982,0.68433445,99431.0,99430.0,1.43003873]
[1733654593207,0.68733445,99431.0,99430.0,1.43003873]
[1733654593433,0.69533445,99431.0,99430.0,1.43003873]
[1733654593648,0.68433445,99431.0,99430.0,1.43003873]
[1733654594056,0.69833445,99431.0,99430.0,1.43003873]
[1733654594714,0.69333445,99431.0,99430.0,1.43003873]
[1733654595789,0.77476968,99431.0,99430.0,1.43003873]
[1733654596002,0.78876968,99431.0,99430.0,1.43003873]
[1733654596218,0.77976968,99431.0,99430.0,1.43003873]
[1733654596444,0.68433445,99431.0,99430.0,1.43003873]
[1733654596880,0.69033445,99431.0,99430.0,1.43003873]
[1733654597096,0.69933445,99431.0,99430.0,1.43003873]
[1733654598234,0.78977783,99431.0,99430.0,1.43003873]
[1733654598449,0.69933445,99431.0,99430.0,1.43003873]
[1733654605394,0.83501157,99431.0,99430.0,1.43003873]
[1733654606047,0.69933445,99431.0,99430.0,1.43003873]
[1733654606351,0.83501395,99431.0,99430.0,1.43003873]
[1733654607230,0.69933445,99431.0,99430.0,1.43003873]
[1733654607677,0.8350086,99431.0,99430.0,1.43003873]
[1733654608345,0.69933445,99431.0,99430.0,1.43003873]
[1733654608981,0.83500575,99431.0,99430.0,1.43003873]
[1733654609656,0.69933445,99431.0,99430.0,1.43003873]
[1733654612228,0.78977287,99431.0,99430.0,1.43003873]
[1733654612667,0.42483445,99431.0,99430.0,1.43003873]
[1733654614446,0.41883445,99431.0,99430.0,1.43003873]
[1733654615606,0.42383445,99431.0,99430.0,1.43003873]
[1733654615820,0.41483445,99431.0,99430.0,1.43003873]
[1733654616047,0.42383445,99431.0,99430.0,1.43003873]
[1733654616264,0.40983445,99431.0,99430.0,1.43003873]
[1733654616741,0.50553445,99431.0,99430.0,1.43003873]
[1733654616943,0.49653445,99431.0,99430.0,1.43003873]
[1733654617170,0.50053445,99431.0,99430.0,1.43003873]
[1733654617781,0.50553445,99431.0,99430.0,1.43103873]
[1733654618030,0.59597287,99431.0,99430.0,1.43103873]
[1733654618420,0.50553445,99431.0,99430.0,1.43103873]
[1733654618685,0.59597287,99431.0,99430.0,1.43103873]
[1733654619877,0.55313445,99431.0,99430.0,1.43103873]
[1733654620408,0.58452,99431.0,99430.0,1.43103873]
[1733654620609,0.91540549,99431.0,99430.0,1.43103873]
[1733654620810,0.73452,99431.0,99430.0,1.43103873]
[1733654621784,0.96062687,99431.0,99430.0,1.43103873]
[1733654622286,0.73452,99431.0,99430.0,1.43103873]
[1733654622930,0.96062687,99431.0,99430.0,1.43103873]
[1733654623375,0.73452,99431.0,99430.0,1.43103873]
[1733654625295,0.73452,99431.0,99430.0,1.3942265]
[1733654625716,0.73452,99431.0,99430.0,1.43103873]
[1733654629613,0.96064032,99431.0,99430.0,1.43103873]
[1733654629820,0.73452,99431.0,99430.0,1.43103873]
[1733654631051,0.96064073,99431.0,99430.0,1.43103873]
[1733654631491,0.73452,99431.0,99430.0,1.43103873]
[1733654631827,0.96064073,99431.0,99430.0,1.43103873]
[1733654632047,0.73452,99431.0,99430.0,1.43103873]
[1733654632657,0.96064073,99431.0,99430.0,1.43103873]
[1733654634542,0.9606568,99431.0,99430.0,1.43103873]
[1733654636612,0.73452,99431.0,99430.0,1.43103873]
[1733654637069,0.9606568,99431.0,99430.0,1.43103873]
[1733654637302,0.73452,99431.0,99430.0,1.43103873]
[1733654637568,0.9606568,99431.0,99430.0,1.43103873]
[1733654637785,0.73452,99431.0,99430.0,1.43103873]
[1733654637993,0.96068158,99431.0,99430.0,1.43103873]
[1733654638644,0.96068346,99431.0,99430.0,1.43103873]
[1733654639082,0.73452,99431.0,99430.0,1.43103873]
[1733654639538,0.96068346,99431.0,99430.0,1.43103873]
[1733654639744,0.73452,99431.0,99430.0,1.43103873]
[1733654639953,0.96068346,99431.0,99430.0,1.43103873]
[1733654640818,0.73452,99431.0,99430.0,1.43103873]
[1733654646509,0.7416982,99431.0,99430.0,1.43103873]
[1733654651134,0.96788391,99431.0,99430.0,1.43103873]
[1733654651562,0.7416982,99431.0,99430.0,1.43103873]
[1733654652198,0.96788391,99431.0,99430.0,1.43103873]
[1733654653265,0.7416982,99431.0,99430.0,1.43103873]
[1733654653484,0.9678875,99431.0,99430.0,1.43103873]
[1733654653687,0.7416982,99431.0,99430.0,1.43103873]
[1733654654522,0.96789059,99431.0,99430.0,1.43103873]
[1733654654729,0.7416982,99431.0,99430.0,1.43103873]
[1733654655145,0.96789059,99431.0,99430.0,1.43103873]
[1733654657117,0.7416982,99431.0,99430.0,1.43103873]
[1733654658813,0.92265142,99431.0,99430.0,1.43103873]
[1733654659253,0.7416982,99431.0,99430.0,1.43103873]
[1733654661517,0.96792927,99431.0,99430.0,1.43103873]
[1733654665333,0.84151354,99431.0,99430.0,1.43103873]
[1733654666338,0.7416982,99431.0,99430.0,1.43103873]
[1733654668098,0.96802201,99431.0,99430.0,1.43103873]
[1733654668298,0.7416982,99431.0,99430.0,1.43103873]
[1733654677985,1.01329612,99431.0,99430.0,1.3942265]
[1733654678194,0.75776694,99431.0,99430.0,1.3942265]
[1733654678400,0.85758228,99431.0,99430.0,1.3942265]
[1733654678842,0.84358228,99431.0,99430.0,1.3932265]
[1733654679321,0.85858228,99431.0,99430.0,1.3932265]
[1733654679797,0.86158228,99431.0,99430.0,1.3932265]
[1733654681156,0.86758228,99431.0,99430.0,1.3932265]
[1733654683597,0.86758228,99431.0,99430.0,1.2926515]
[1733654684471,0.86758228,99431.0,99430.0,1.2323065]
[1733654684689,0.86758228,99431.0,99430.0,1.1920765]
[1733654685370,0.86158228,99431.0,99430.0,1.1920765]
[1733654685574,0.86958228,99431.0,99430.0,1.1920765]
[1733654685787,0.86958228,99431.0,99430.0,1.0915015]
[1733654686015,0.86477005,99431.0,99430.0,1.0915015]
[1733654686441,0.87377005,99431.0,99430.0,1.0915015]
[1733654686691,0.86477005,99431.0,99430.0,0.9909265]
[1733654686887,0.87377005,99431.0,99430.0,0.9909265]
[1733654687101,0.86577005,99431.0,99430.0,0.9909265]
[1733654687339,1.20738105,99431.0,99430.0,0.9909265]
[1733654687572,1.21638105,99431.0,99430.0,0.9305815]
[1733654687791,1.21638105,99431.0,99430.0,0.8903515]
[1733654688436,1.21638105,99431.0,99430.0,0.8702365]
[1733654688841,1.21638105,99431.0,99430.0,0.8300065]
[1733654689071,1.21638105,99431.0,99430.0,0.7897765]
[1733654689268,1.48723688,99431.0,99430.0,0.7897765]
[1733654689472,1.21638105,99431.0,99430.0,0.7897765]
[1733654689711,1.48723373,99431.0,99430.0,0.7294315]
[1733654690092,1.21638105,99431.0,99430.0,0.6892015]
[1733654690253,1.4871875,99431.0,99430.0,0.6892015]
[1733654690454,1.4871875,99431.0,99430.0,0.6690865]
[1733654690660,1.4871875,99431.0,99430.0,0.5886265]
[1733654690887,1.48718744,99431.0,99430.0,0.5886265]
[1733654691104,1.21638105,99431.0,99430.0,0.5886265]
[1733654692082,1.48714569,99431.0,99430.0,0.5886265]
[1733654693362,1.48714569,99431.0,99430.0,0.5081665]
[1733654693579,1.14553469,99431.0,99430.0,0.4679365]
[1733654693797,1.40847005,99431.0,99430.0,0.4277065]
[1733654694009,4.19815005,99431.0,99430.0,0.4277065]
[1733654694225,4.41881799,99431.0,99430.0,0.4277065]
[1733654694448,4.14815005,99431.0,99430.0,0.3874765]
[1733654694657,4.14815005,99431.0,99430.0,0.2869015]
[1733654695172,4.41881799,99431.0,99430.0,0.2869015]
[1733654695360,4.14815005,99431.0,99430.0,0.2869015]
[1733654695572,4.14815005,99431.0,99430.0,0.2265565]
[1733654695776,4.14815005,99431.0,99430.0,0.1863265]
[1733654695990,4.4187825,99431.0,99430.0,0.1863265]
[1733654696685,4.4187825,99431.0,99430.0,0.0857515]
[1733654697578,4.14815005,99431.0,99430.0,5e-07]
[1733654697797,1.44240131,99431.0,99430.0,5e-07]
[1733654698006,1.46006122,99431.0,99430.0,5e-07]
[1733654698845,1.45106122,99431.0,99430.0,5e-07]
[1733654699072,1.46006122,99431.0,99430.0,5e-07]
[1733654699283,1.45106122,99431.0,99430.0,5e-07]
[1733654699633,1.46006122,99431.0,99430.0,5e-07]
[1733654700041,1.45106122,99431.0,99430.0,5e-07]
[1733654700268,1.72406122,99431.0,99430.0,5e-07]
[1733654700505,1.73306122,99431.0,99430.0,5e-07]
[1733654700901,2.03820002,99431.0,99430.0,5e-07]
[1733654701305,1.73306122,99431.0,99430.0,5e-07]
[1733654701510,2.03735758,99431.0,99430.0,5e-07]
[1733654701702,1.73306122,99431.0,99430.0,5e-07]
[1733654705800,0.01318777,99416.0,99389.0,0.03681223]
[1733654705975,0.43113151,99391.0,99389.0,0.03681223]
[1733654706387,0.44732029,99391.0,99389.0,0.03681223]
[1733654706943,0.44737763,99391.0,99389.0,0.03681223]
[1733654707169,0.75756604,99391.0,99389.0,0.03681223]
[1733654707370,0.85738138,99391.0,99389.0,0.03681223]
[1733654707632,0.86238138,99391.0,99389.0,0.03681223]
[1733654708085,0.76256604,99391.0,99389.0,0.03681223]
[1733654709601,0.58146404,99391.0,99389.0,0.03681223]
[1733654710258,0.57337817,99391.0,99389.0,0.03681223]
[1733654710536,0.57337817,99391.0,99390.0,0.03767793]
[1733654711407,0.57337817,99391.0,99390.0,0.11577793]
[1733654711850,0.42337817,99391.0,99390.0,0.16447793]
[1733654712071,0.32334866,99391.0,99390.0,0.16548395]
[1733654712676,0.31834866,99391.0,99390.0,0.16548395]
[1733654712878,0.31434866,99391.0,99390.0,0.16548395]
[1733654713085,0.31434866,99391.0,99390.0,0.23848316]
[1733654713281,0.31434866,99391.0,99390.0,0.23747714]
[1733654713518,0.31434866,99391.0,99390.0,0.28747714]
[1733654713519,0.30124575,99391.0,99390.0,0.28747714]
[1733654713742,0.31324575,99391.0,99390.0,0.28747714]
[1733654713961,0.32128895,99391.0,99390.0,0.28747714]
[1733654714192,0.31828895,99391.0,99390.0,0.28747714]
[1733654714436,0.31828895,99391.0,99390.0,0.23747714]
[1733654714666,0.32028895,99391.0,99390.0,0.23747714]
[1733654715088,0.31128895,99391.0,99390.0,0.23747714]
[1733654715292,0.31828895,99391.0,99390.0,0.23747714]
[1733654716191,0.31828895,99391.0,99390.0,0.21447714]
[1733654721040,0.31828895,99391.0,99390.0,0.27703958]
[1733654725544,0.31828895,99391.0,99390.0,0.21436997]
[1733654729194,0.31828895,99391.0,99390.0,0.28736997]
[1733654730731,0.31828895,99391.0,99390.0,0.39316997]
[1733654730884,0.31828895,99391.0,99390.0,0.28736997]
[1733654738267,0.31024575,99391.0,99390.0,0.28736997]
[1733654738718,0.30934858,99391.0,99390.0,0.36290887]
[1733654739140,0.31634858,99391.0,99390.0,0.46870887]
[1733654739363,0.31834858,99391.0,99390.0,0.46870887]
[1733654739797,0.31634858,99391.0,99390.0,0.46870887]
[1733654740013,0.31734858,99391.0,99390.0,0.46870887]
[1733654740271,0.32134858,99391.0,99390.0,0.46870887]
[1733654740489,0.32134858,99391.0,99390.0,0.56873838]
[1733654741628,0.32034858,99391.0,99390.0,0.56873838]
[1733654741840,0.31334858,99391.0,99390.0,0.56873838]
[1733654742052,0.31034858,99391.0,99390.0,0.56873838]
[1733654742271,0.31234858,99391.0,99390.0,0.56873838]
[1733654742470,0.31134858,99391.0,99390.0,0.56873838]
[1733654742873,0.31234858,99391.0,99390.0,0.56873838]
[1733654743085,0.30934858,99391.0,99390.0,0.56873838]
[1733654745026,0.30934858,99391.0,99390.0,0.57895437]
[1733654745204,0.39723282,99391.0,99390.0,0.57895437]
[1733654746076,0.39723282,99391.0,99390.0,0.58095437]
[1733654746274,0.35891421,99391.0,99390.0,0.58095437]
[1733654747528,0.0017324,99400.0,99390.0,0.58095437]
[1733654747734,0.0017324,99400.0,99399.0,0.57239944]
[1733654747934,0.0017324,99400.0,99399.0,0.67242895]
[1733654748536,0.0037324,99400.0,99399.0,0.67242895]
[1733654748962,0.0017324,99400.0,99399.0,0.67242895]
[1733654749162,0.0037324,99400.0,99399.0,0.67242895]
[1733654749391,0.0017324,99400.0,99399.0,0.74796785]
[1733654749822,0.0017324,99400.0,99399.0,0.74996785]
[1733654751317,0.06144968,99400.0,99399.0,0.74996785]
[1733654754872,0.06144968,99400.0,99399.0,0.77051807]
[1733654755550,0.06144968,99400.0,99399.0,0.86073096]
[1733654756400,0.06144968,99400.0,99399.0,0.77051807]
[1733654757723,0.0816316,99430.0,99429.0,0.21784523]
[1733654757918,0.15145988,99430.0,99429.0,0.21784523]
[1733654759058,0.15463214,99430.0,99429.0,0.21784523]
[1733654759731,0.16363214,99430.0,99429.0,0.21784523]
[1733654762576,0.16363214,99430.0,99429.0,0.03681223]
[1733654762818,0.31026165,99430.0,99429.0,0.03681223]
[1733654763048,0.28829773,99430.0,99429.0,0.03681223]
[1733654764104,0.27629773,99430.0,99429.0,0.03681223]
[1733654764493,0.28929773,99430.0,99429.0,0.03681223]
[1733654764701,0.28029773,99430.0,99429.0,0.03681223]
[1733654765127,0.28529773,99430.0,99429.0,0.03681223]
[1733654765325,0.28929773,99430.0,99429.0,0.03681223]
[1733654768037,0.29674184,99430.0,99429.0,0.03681223]
[1733654768938,0.30675878,99430.0,99429.0,0.03681223]
[1733654770743,0.29674184,99430.0,99429.0,0.03681223]
[1733654771965,0.29674184,99430.0,99429.0,0.04549337]
[1733654772167,0.29674184,99430.0,99429.0,0.03681223]
[1733654772577,0.28929773,99430.0,99429.0,0.03681223]
[1733654772993,0.2967387,99430.0,99429.0,0.03681223]
[1733654773434,0.2837387,99430.0,99429.0,0.03681223]
[1733654773651,0.2927387,99430.0,99429.0,0.03681223]
[1733654773859,0.2967387,99430.0,99429.0,0.03681223]
[1733654774283,0.2927387,99430.0,99429.0,0.03681223]
[1733654774827,0.2957387,99430.0,99429.0,0.03681223]
[1733654780430,0.49532302,99430.0,99429.0,0.03681223]
[1733654780636,0.4466387,99430.0,99429.0,0.03681223]
[1733654780857,0.7483587,99430.0,99429.0,0.03681223]
[1733654783527,0.83871032,99430.0,99429.0,0.03681223]
[1733654784567,0.7483587,99430.0,99429.0,0.03681223]
[1733654794250,0.7483587,99430.0,99402.0,0.181082]
[1733654794251,0.2279,99426.0,99423.0,0.03681223]
[1733654794474,0.2774,99423.0,99422.0,0.03681223]
[1733654794686,0.181046,99422.0,99421.0,0.03681223]
[1733654794949,0.74324594,99422.0,99421.0,0.03681223]
[1733654795167,1.0516351,99422.0,99421.0,0.03681223]
[1733654795606,0.91610767,99422.0,99421.0,0.03681223]
[1733654795845,0.92510767,99422.0,99421.0,0.03681223]
[1733654796056,1.0606351,99422.0,99421.0,0.03681223]
[1733654796406,0.92510767,99422.0,99421.0,0.03681223]
[1733654797045,0.93110767,99422.0,99421.0,0.03681223]
[1733654797271,0.1954,99421.0,99417.0,0.03681223]
[1733654797511,0.406653,99418.0,99417.0,0.03681223]
[1733654797689,0.55604944,99418.0,99417.0,0.03681223]
[1733654797883,0.85776944,99418.0,99417.0,0.03681223]
[1733654798082,0.85776944,99418.0,99400.0,0.0018716]
[1733654798083,0.15,99415.0,99414.0,0.03681223]
[1733654798283,0.67748129,99415.0,99414.0,0.03681223]
[1733654798487,0.68414184,99415.0,99414.0,0.03681223]
[1733654798667,0.331061,99414.0,99400.0,0.0008657]
[1733654798943,0.37179436,99413.0,99412.0,0.03681223]
[1733654799113,0.37179436,99413.0,99400.0,0.0008657]
[1733654799114,0.15,99412.0,99400.0,0.0008657]
[1733654799335,0.15,99412.0,99409.0,0.03681223]
[1733654799336,0.15,99410.0,99409.0,0.03681223]
[1733654799552,0.15,99410.0,99400.0,0.0008657]
[1733654799553,0.18107,99409.0,99408.0,0.03681223]
[1733654799768,0.78257494,99409.0,99408.0,0.03681223]
[1733654799999,0.60815213,99409.0,99408.0,0.03681223]
[1733654800217,0.68375213,99409.0,99408.0,0.03681223]
[1733654800870,0.68875213,99409.0,99408.0,0.03681223]
[1733654802168,0.69275213,99409.0,99408.0,0.03681223]
[1733654802382,0.69775213,99409.0,99408.0,0.03681223]
[1733654812121,0.70769991,99409.0,99408.0,0.03681223]
[1733654815572,0.69775213,99409.0,99408.0,0.03681223]
[1733654823978,0.69275213,99409.0,99408.0,0.03681223]
[1733654824211,0.68975213,99409.0,99408.0,0.03681223]
[1733654824441,0.69875213,99409.0,99408.0,0.03681223]
[1733654824642,0.68375213,99409.0,99408.0,0.03681223]
[1733654825075,0.69675213,99409.0,99408.0,0.03681223]
[1733654826325,0.37112262,99409.0,99408.0,0.03681223]
[1733654827815,0.37112262,99409.0,99408.0,0.30737128]
[1733654828254,0.36371058,99409.0,99408.0,0.30737128]
[1733654828684,0.36942102,99409.0,99408.0,0.08681144]
[1733654837748,0.36942102,99409.0,99408.0,0.03681223]
[1733654837904,0.36942102,99409.0,99408.0,0.08681144]
[1733654842377,0.36942102,99409.0,99408.0,0.03681223]
[1733654845994,0.36542102,99409.0,99408.0,0.03681223]
[1733654846407,0.36542102,99409.0,99408.0,0.08681144]
[1733654846835,0.36842102,99409.0,99408.0,0.03681223]
[1733654847143,0.35942102,99409.0,99408.0,0.03681223]
[1733654847361,0.36842102,99409.0,99408.0,0.03681223]
[1733654855651,0.36842102,99409.0,99408.0,0.08680996]
[1733654856130,0.36842102,99409.0,99408.0,0.03681223]
[1733654860836,0.36542102,99409.0,99408.0,0.03681223]
[1733654861038,0.35642102,99409.0,99408.0,0.03681223]
[1733654861234,0.35942102,99409.0,99408.0,0.03681223]
[1733654861640,0.35642102,99409.0,99408.0,0.03681223]
[1733654861842,0.36442102,99409.0,99408.0,0.03681223]
[1733654862052,0.36642102,99409.0,99408.0,0.03681223]
[1733654863199,0.35842102,99409.0,99408.0,0.03681223]
[1733654863488,0.36542102,99409.0,99408.0,0.03681223]
[1733654864823,0.36542102,99409.0,99408.0,0.21788323]
[1733654881249,0.36542102,99409.0,99408.0,0.03681223]
[1733654881931,0.36342102,99409.0,99408.0,0.03681223]
[1733654882356,0.35842102,99409.0,99408.0,0.03681223]
[1733654882569,0.36542102,99409.0,99408.0,0.03681223]
[1733654883646,0.36342102,99409.0,99408.0,0.03681223]
[1733654884027,0.36542102,99409.0,99408.0,0.03681223]
[1733654888213,0.36542102,99409.0,99408.0,0.12775724]
[1733654888427,0.36542102,99409.0,99408.0,0.29130817]
[1733654888428,0.35971058,99409.0,99408.0,0.29130817]
[1733654888664,0.35971058,99409.0,99408.0,0.20075645]
[1733654888883,0.36515088,99409.0,99408.0,0.33658404]
[1733654889347,0.36515088,99409.0,99408.0,0.20075645]
[1733654891166,0.36515088,99409.0,99408.0,0.2912583]
[1733654893233,0.36515088,99409.0,99408.0,0.21106921]
[1733654894925,0.36515088,99409.0,99408.0,0.20075645]
[1733654897173,0.35815088,99409.0,99408.0,0.20075645]
[1733654897629,0.36015088,99409.0,99408.0,0.20075645]
[1733654899478,0.36115088,99409.0,99408.0,0.20075645]
[1733654899915,0.36015088,99409.0,99408.0,0.20075645]
[1733654900328,0.36115088,99409.0,99408.0,0.20075645]
[1733654904904,0.35715088,99409.0,99408.0,0.20075645]
[1733654905456,0.36115088,99409.0,99408.0,0.20075645]
[1733654905704,0.36015088,99409.0,99408.0,0.20075645]
[1733654905926,0.36115088,99409.0,99408.0,0.20075645]
[1733654909051,0.36015088,99409.0,99408.0,0.20075645]
[1733654909258,0.36015088,99409.0,99408.0,0.29120048]
[1733654909515,0.36115088,99409.0,99408.0,0.29120048]
[1733654909727,0.36115088,99409.0,99408.0,0.20075645]
[1733654909953,0.36015088,99409.0,99408.0,0.29120031]
[1733654910162,0.35615088,99409.0,99408.0,0.29120031]
[1733654910381,0.35815088,99409.0,99408.0,0.29120031]
[1733654910562,0.35615088,99409.0,99408.0,0.29120031]
[1733654910772,0.35615088,99409.0,99408.0,0.20075645]
[1733654910987,0.35915088,99409.0,99408.0,0.20075645]
[1733654911605,0.35615088,99409.0,99408.0,0.20075645]
[1733654912013,0.35915088,99409.0,99408.0,0.20075645]
[1733654912619,0.35915088,99409.0,99408.0,0.29120031]
[1733654912995,0.35915088,99409.0,99408.0,0.20075645]
[1733654913203,0.35615088,99409.0,99408.0,0.20075645]
[1733654913440,0.35815088,99409.0,99408.0,0.20075645]
[1733654916140,0.35815088,99409.0,99408.0,0.29120031]
[1733654916270,0.35815088,99409.0,99408.0,0.20075645]
[1733654918321,0.35815088,99409.0,99408.0,0.29120031]
[1733654918998,0.35815088,99409.0,99408.0,0.20075645]
[1733654920532,0.35815088,99409.0,99408.0,0.29120031]
[1733654925030,0.35815088,99409.0,99408.0,0.20075645]
[1733654925031,0.35986952,99409.0,99408.0,0.20075645]
[1733654925498,0.35986952,99409.0,99408.0,0.29120367]
[1733654925713,0.35986952,99409.0,99408.0,0.20075645]
[1733654930404,0.35986952,99409.0,99408.0,0.33644418]
[1733654931305,0.35986952,99409.0,99408.0,0.67046721]
[1733654932425,0.35986952,99409.0,99408.0,0.53477948]
[1733654933459,0.44086952,99409.0,99408.0,0.42083447]
[1733654933664,0.48666952,99409.0,99408.0,0.03681223]
[1733654941915,0.58669903,99409.0,99408.0,0.03681223]
[1733654942581,0.58669903,99409.0,99408.0,0.03186543]
[1733654942788,0.48466952,99409.0,99408.0,0.03186543]
[1733654943000,0.48466952,99409.0,99408.0,0.05815967]
[1733654943224,0.44786952,99409.0,99408.0,0.05815967]
[1733654943423,0.43371058,99409.0,99408.0,0.05815967]
[1733654943626,0.43882392,99409.0,99408.0,0.05815967]
[1733654943899,0.44782392,99409.0,99408.0,0.05815967]
[1733654944309,0.44782392,99409.0,99408.0,0.10815967]
[1733654944756,0.36682392,99409.0,99408.0,0.10815967]
[1733654945411,0.36982392,99409.0,99408.0,0.10815967]
[1733654945639,0.36082392,99409.0,99408.0,0.10815967]
[1733654945860,0.36582392,99409.0,99408.0,0.10815967]
[1733654946065,0.35782392,99409.0,99408.0,0.10815967]
[1733654946460,0.36382392,99409.0,99408.0,0.10815967]
[1733654946874,0.35782392,99409.0,99408.0,0.10815967]
[1733654947080,0.36082392,99409.0,99408.0,0.10815967]
[1733654948305,0.36182392,99409.0,99408.0,0.10815967]
[1733654950303,0.36182392,99409.0,99408.0,0.03186543]
[1733654950304,0.43912392,99409.0,99408.0,0.03186543]
[1733654952722,0.58795343,99409.0,99408.0,0.03186543]
[1733654956378,0.59796759,99409.0,99408.0,0.03186543]
[1733654957291,0.59796759,99409.0,99400.0,0.0008657]
[1733654957292,0.47186759,99409.0,99400.0,0.0008657]
[1733654957495,0.3228475,99409.0,99408.0,0.03186543]
[1733654957709,0.181071,99408.0,99407.0,0.03186543]
[1733654957940,0.46190014,99408.0,99407.0,0.03186543]
[1733654958157,0.77090318,99408.0,99407.0,0.03186543]
[1733654959331,0.77290318,99408.0,99407.0,0.03186543]
[1733654959529,0.78090318,99408.0,99407.0,0.03186543]
[1733654964620,0.49980267,99408.0,99407.0,0.03186543]
[1733654964848,0.49980267,99408.0,99407.0,0.07635514]
[1733654964849,0.36790267,99408.0,99407.0,0.07635514]
[1733654965053,0.36790267,99408.0,99407.0,0.12635514]
[1733654965703,0.37394026,99408.0,99407.0,0.12635514]
[1733654965903,0.37194026,99408.0,99407.0,0.12635514]
[1733654966193,0.36594026,99408.0,99407.0,0.12635514]
[1733654966587,0.36994026,99408.0,99407.0,0.12635514]
[1733654967594,0.36794026,99408.0,99407.0,0.12635514]
[1733654968046,0.36394026,99408.0,99407.0,0.12735514]
[1733654968223,0.36594026,99408.0,99407.0,0.14777272]
[1733654971084,0.36594026,99408.0,99407.0,0.15781537]
[1733654977592,0.36594026,99408.0,99407.0,0.06332566]
[1733654977837,0.36594026,99408.0,99407.0,0.05328301]
[1733654978280,0.36594026,99408.0,99407.0,0.03286543]
[1733654989765,0.36594026,99408.0,99407.0,0.08286543]
[1733654993249,0.36594026,99408.0,99407.0,0.13286464]
[1733654993441,0.36594026,99408.0,99407.0,0.22529088]
[1733654993869,0.35261963,99408.0,99407.0,0.22529088]
[1733654994292,0.36598377,99408.0,99407.0,0.22529088]
[1733654996247,0.36598377,99408.0,99407.0,0.31558868]
[1733654996676,0.39530302,99408.0,99407.0,0.31558868]
[1733654999516,0.39530302,99408.0,99407.0,0.22529088]
[1733655002071,0.39330302,99408.0,99407.0,0.22429088]
[1733655002518,0.39330302,99408.0,99407.0,0.22529088]
[1733655002519,0.39530302,99408.0,99407.0,0.22529088]
[1733655002662,0.39330302,99408.0,99407.0,0.33858868]
[1733655002873,0.39330302,99408.0,99407.0,0.24829088]
[1733655003283,0.39330302,99408.0,99407.0,0.38377785]
[1733655003909,0.39330302,99408.0,99407.0,0.38277785]
[1733655004216,0.39330302,99408.0,99407.0,0.71812062]
[1733655005243,0.39330302,99408.0,99407.0,0.58267043]
[1733655007364,0.39330302,99408.0,99407.0,0.76346]
[1733655007781,0.39330302,99408.0,99407.0,0.58277737]
[1733655008190,0.39330302,99408.0,99407.0,0.76346]
[1733655009249,0.39330302,99408.0,99407.0,0.58277737]
[1733655010295,0.39330302,99408.0,99407.0,0.80910702]
[1733655010700,0.39330302,99408.0,99407.0,0.58306139]
[1733655011572,0.38825325,99408.0,99407.0,0.58306139]
[1733655013986,0.38825325,99408.0,99407.0,0.8090927]
[1733655015087,0.38825325,99408.0,99407.0,0.80906]
[1733655015290,0.38825325,99408.0,99407.0,0.80706]
[1733655015496,0.38825325,99408.0,99407.0,0.80906]
[1733655015706,0.38825325,99408.0,99407.0,0.81006]
[1733655016769,0.38825325,99408.0,99407.0,0.80806]
[1733655017179,0.38825325,99408.0,99407.0,0.81006]
[1733655017375,0.38825325,99408.0,99407.0,0.81306]
[1733655017982,0.38825325,99408.0,99407.0,0.58703335]
[1733655023979,0.38825325,99408.0,99407.0,0.81306]
[1733655025074,0.38825325,99408.0,99407.0,0.58703335]
[1733655025499,0.38825325,99408.0,99407.0,0.81306]
[1733655025926,0.38825325,99408.0,99407.0,0.58703335]
[1733655026580,0.38825325,99408.0,99407.0,0.81306]
[1733655027400,0.38825325,99408.0,99407.0,0.58703335]
[1733655027714,0.38825325,99408.0,99407.0,0.81309982]
[1733655027852,0.38825325,99408.0,99407.0,0.58703335]
[1733655028058,0.39380015,99408.0,99407.0,0.7901025]
[1733655028280,0.47180015,99408.0,99407.0,0.56403335]
[1733655028753,0.47180015,99408.0,99407.0,0.74491182]
[1733655028956,0.47180015,99408.0,99407.0,0.56403335]
[1733655031256,0.47180015,99408.0,99407.0,0.7901025]
[1733655031974,0.46551058,99408.0,99407.0,0.7901025]
[1733655032407,0.46551058,99408.0,99407.0,0.56403335]
[1733655032621,0.46551058,99408.0,99407.0,0.74022543]
[1733655032849,0.46551058,99408.0,99407.0,0.69499456]
[1733655033470,0.46551058,99408.0,99407.0,0.51403414]
[1733655035233,0.38751058,99408.0,99407.0,0.51403414]
[1733655035487,0.38751058,99408.0,99407.0,0.51437351]
[1733655036967,0.38751058,99408.0,99407.0,0.53737351]
[1733655037285,0.38751058,99408.0,99407.0,0.80888129]
[1733655037539,0.36744037,99408.0,99407.0,0.68740223]
[1733655037884,0.27210318,99408.0,99407.0,0.91330223]
[1733655038099,0.27210318,99408.0,99407.0,0.94472431]
[1733655038314,0.0024664,99410.0,99409.0,0.30486464]
[1733655038492,0.0024664,99410.0,99409.0,0.7722201]
[1733655039380,0.0024664,99410.0,99409.0,0.77201188]
[1733655039863,0.03966443,99410.0,99409.0,0.77201188]
[1733655040161,0.0024664,99410.0,99409.0,0.77201188]
[1733655040363,0.0024664,99410.0,99409.0,0.77701188]
[1733655040822,0.0034664,99410.0,99409.0,0.78301188]
[1733655042253,0.0034664,99410.0,99409.0,0.96382814]
[1733655042470,0.0034664,99410.0,99409.0,0.95882814]
[1733655042677,0.0034664,99410.0,99409.0,0.77801188]
[1733655042901,0.0044664,99410.0,99409.0,0.96482557]
[1733655043094,0.0044664,99410.0,99409.0,0.68398237]
[1733655043669,0.0044664,99410.0,99409.0,0.53398237]
[1733655043850,0.0044664,99410.0,99409.0,0.54419906]
[1733655045502,0.0848664,99410.0,99409.0,0.49419985]
[1733655045714,0.0848664,99410.0,99409.0,0.54419906]
[1733655046458,0.0848664,99410.0,99409.0,0.62980862]
[1733655046631,0.0848664,99410.0,99409.0,0.295935]
[1733655047265,0.0848664,99410.0,99409.0,0.62966292]
[1733655047413,0.0848664,99410.0,99409.0,0.2959355]
[1733655047613,0.0848664,99410.0,99409.0,0.49405479]
[1733655047819,0.0848664,99410.0,99409.0,0.0554608]
[1733655048025,0.0848664,99410.0,99409.0,0.04524411]
[1733655048445,0.1321664,99410.0,99409.0,0.04524411]
[1733655048650,0.1321664,99410.0,99409.0,0.12710954]
[1733655048852,0.13832997,99410.0,99409.0,0.12110954]
[1733655049297,0.13832997,99410.0,99409.0,0.12310954]